Workbook

Sheet Configuracion
B3: Moneda | E3: Importe Seguro de Desempleo | K3: Período de gracia
A4: 1 | B4: Soles | E4: Moneda | F4: Meses(desde) | G4: Meses(hasta) | H4: Importe | J4: 0 | K4: 0
A5: 2 | B5: Dólares | E5: 1 | F5: 1 | G5: 6 | H5: 73 | J5: 1 | K5: 1
E6: 1 | F6: 7 | G6: 9 | H6: 110 | J6: 2 | K6: 2
B7: Cuotas | E7: 1 | F7: 10 | G7: 12 | H7: 145
A8: 1 | B8: Ordinarias | E8: 1 | F8: 13 | G8: 18 | H8: 185
A9: 2 | B9: Extraordinarias | E9: 1 | F9: 19 | G9: 24 | H9: 252 | K9: Plazo
E10: 1 | F10: 25 | G10: 36 | H10: 369 | J10: 0 | K10: 6
B11: Mes siguiente | E11: 1 | F11: 37 | G11: 48 | H11: 454 | J11: 1 | K11: 12
A12: 1 | B12: SI | E12: 1 | F12: 49 | G12: 999 | H12: 577 | J12: 2 | K12: 18
A13: 2 | B13: NO | E13: 2 | F13: 1 | G13: 6 | H13: 34 | J13: 3 | K13: 24
E14: 2 | F14: 7 | G14: 9 | H14: 51 | J14: 4 | K14: 36
B15: Día Vencimiento | E15: 2 | F15: 10 | G15: 12 | H15: 68 | J15: 5 | K15: 48
A16: 1 | B16: 2 | E16: 2 | F16: 13 | G16: 18 | H16: 88 | J16: 6 | K16: 60
A17: 2 | B17: 17 | E17: 2 | F17: 19 | G17: 24 | H17: 120
E18: 2 | F18: 25 | G18: 36 | H18: 176
B19: Seguro de Protección de Créditos | E19: 2 | F19: 37 | G19: 48 | H19: 186
A20: 1 | B20: SI | E20: 2 | F20: 49 | G20: 999 | H20: 236
A21: 2 | B21: NO
E22: Comisión Informe
B23: Comisión de informe | E23: Soles | F23: 10
A24: 1 | B24: SI | E24: Dólares | F24: 3.5
A25: 2 | B25: NO
B27: Seguro Desgravamen
A28: 1 | B28: INDIVIDUAL | C28: 0.00075
A29: 2 | B29: ENDOSADO | C29: 0
A36: 1 | B36: Enero
A37: =+A36+1 -> 2 | B37: Febrero
A38: =+A37+1 -> 3 | B38: Marzo
A39: 4 | B39: Abril
A40: 5 | B40: Mayo
A41: 6 | B41: Junio
A42: 7 | B42: Julio
A43: 8 | B43: Agosto
A44: 9 | B44: Septiembre
A45: 10 | B45: Octubre
A46: 11 | B46: Noviembre
A47: 12 | B47: Diciembre
A48: 13 | B48: Enero
A49: =+A48+1 -> 14 | B49: Febrero
A50: 15 | B50: Marzo
A51: 16 | B51: Abril
A52: 17 | B52: Mayo
A53: 18 | B53: Junio
A54: 19 | B54: Julio
A55: 20 | B55: Agosto
A56: 21 | B56: Septiembre
A57: 22 | B57: Octubre
A58: 23 | B58: Noviembre
A59: 24 | B59: Diciembre

Sheet Datos
X1: 2019-01-01
X2: 2019-01-31
A4: Simulador de Préstamo Personal
B7: Moneda del Préstamo | D7: 1 | J7: =IF(FEC_DES<J18,1,0) -> 1
J10: Monto Desembolso | K10: =C12+C23 -> 5577
F11: =IF(C12>20000, "Si el cliente tiene correo", "") -> 
B12: ¿Qué importe desea solicitar? | C12: 5000 | F12: =IF(C12>20000, "OFRECE PAPERLESS", "") ->  | K12: TED | L12: TEM
B13: ¿En cuantos meses desea pagar? | C13: 60 | J13: TEA | K13: =(1+C15)^(1/360)-1 -> 0.0005063454273 | L13: =(1+C15)^(1/12)-1 -> 0.01530241947
B14: ¿Necesita Periodo de Gracia adicional? | C14: 0 | J14: Seg. Desgrav. | K14: =(1+E16)^(1/30)-1 -> 2.499094195e-05 | L14: =E16 -> 0.00075
B15: Tasa Interés Efectiva Anual | C15: 0.1999 | K15: =(1+TEM)^(1/30)-1 -> 0.000530972309 | L15: =L13+L14 -> 0.01605241947
B16: Seguro de Desgravamen | D16: 1 | E16: =IF(D16=1,Configuracion!C28,Configuracion!C29) -> 0.00075
B17: Tipo de Cuota | D17: 1 | J17: Fec. Cercana | K17: 1era Fecha | L17: Dias 1era Fec
B18: Fecha de Desembolso | C18: =+TODAY() -> 2022-01-26 | D18: 2 | G18: =E20 -> 17 | H18: =MONTH(FEC_DES) -> 1 | I18: =YEAR(FEC_DES) -> 2022 | J18: =IF(DATE(I18,H18,E20)<FEC_DES,DATE(I18,H18+1,G18),DATE(I18,H18,E20)) -> 2022-02-17 | K18: =IF(D19=2,IF(OR(DAY(FEC_DES)=E20, J18-FEC_DES<30),EDATE(J18,1), J18),FEC_DES+E19) -> 2022-03-17 | L18: =K18-FEC_DES -> 50
B19: Vencimiento Mes siguiente | D19: 2 | E19: 30 | J19: =J18-FEC_DES -> 22
B20: Fecha de pago | D20: 2 | E20: =IF(D20=1,Configuracion!B16,Configuracion!B17) -> 17 | J20: Fec. Des. Ini. Gr. | K20: =FEC_DES -> 2022-01-26
B21: Fecha 1er Pago | C21: =EDATE(K18,MESES_GRACIA) -> 2022-03-17 | D21: 2 | J21: Fec. Des. Ini. Nr. | K21: =IF(FEC_PRIMER_PAGO-K18=0,FEC_DES,K18) -> 2022-01-26
B22: Seguro de Protección de créditos | D22: 1
B23: Costo de Seguro de Protección de Créditos | C23: =IF(D22=1,$K$28,0) -> 577 | D23: 1 | J23: Prestamo | K23: =K10 -> 5577
B24: Comisión envío de informe de pago físico | D24: 2 | E24: =IF(D24=1,(IF(D7=1,Configuracion!F23,Configuracion!F24)),0) -> 0 | J24: Saldo Capit. | K24: =VLOOKUP("PP",Cronograma!B32:I127,8,FALSE) -> 5642.524005
C25: =IFERROR(C23/PLAZO,"") -> 9.616666667 | J25: FVP | K25: =SUM(Cronograma!H32:H127) -> 38.13654623
B26: Cuota mensual | C26: =+Cronograma!$S$1 -> 147.9558209 | J26: Cuota | K26: =K24/K25 -> 147.9558209
K28: 577 | N28: 577
B29: Si deseas revisar el detalle de las cuotas puedes revisar
B30: el cronograma dando click aquí
J31: Monto Seguro | K31: 143
J33: TCEA | K33: =+(K34+1)^12-1 -> 0.2201618644 | L33: =+(L34+1)^12-1 -> 0.2201618644 | M33: =+K33-L33 -> 0
K34: =IRR(Cronograma!AA31:'Cronograma'!AA127,0.01) -> 0.01672020424 | L34: =IRR(Cronograma!AB31:'Cronograma'!AB127,0.01) -> 0.01672020424

Sheet Cronograma
S1: =SMALL(S32:S37,3) -> 147.9558209 | T1: =LARGE(S32:S37,1) -> 147.9558209
D2: SIMULACIÓN PRÉSTAMO PERSONAL
D5: CLIENTE | J5: : | L5: =Datos!C9 -> 0
D7: TASA DE INTERES COMPENSATORIA
D8: - EFECTIVA ANUAL FIJA | J8: : | L8: =Datos!C15 -> 0.1999
D9: - TASA DE COSTO EFECTIVO ANUAL | J9: : | L9: =Datos!K33 -> 0.2201618644
D11: NRO CUOTAS MENSUALES | J11: : | L11: =CONCATENATE(PLAZO, " MESES") -> 60 MESES
D12: MONTO DE CREDITO | J12: : | L12: =CONCATENATE(IF(Datos!D7=1,"S/","$"),TEXT(Datos!K23,"#,##0.00")) -> S/5,577.00 | W12: =Datos!K23 -> 5577
D13: =CONCATENATE("PERIODO DE GRACIA (",W17," DIAS)") -> PERIODO DE GRACIA (22 DIAS) | J13: : | L13: =CONCATENATE(IF(Datos!D7=1,"S/","$"),TEXT(W13,"#,##0.00")) -> S/65.52 | W13: =W18 -> 65.52400523
D14: SEGURO PROTECCION FINANCIERA | J14: : | L14: =CONCATENATE(IF(Datos!D7=1,"S/","$"),TEXT(Datos!C23,"#,##0.00")) -> S/577.00
D15: TOTAL FINANCIADO | J15: : | L15: =CONCATENATE(IF(Datos!D7=1,"S/","$"),TEXT(W12+W13,"#,##0.00")) -> S/5,642.52
V16: Ocultar Dias Gracia | W16: =IF(F31=0,"SI","NO") -> NO
D17: IMPUESTO A LAS TRANS.FINANCIER-ITF | J17: : | L17: 5e-05 | V17: Dias de gracia | W17: =SUMIF(B31:B127,"PG",G31:G127) -> 22
V18: Monto gracia | W18: =ABS(SUMIF(B31:B127,"PG",J31:J127)) -> 65.52400523
D19: NRO DE CREDITO | J19: : | L19: =Datos!C10 -> 0
D20: MONEDA | J20: : | L20: =IF(Datos!D7=1,"SOLES","DOLARES") -> SOLES
D21: FECHA DE DESEMBOLSO | J21: : | L21: =FEC_DES -> 2022-01-26
D22: PRIMER VENCIMIENTO | J22: : | L22: =FEC_PRIMER_PAGO -> 2022-03-17
D23: VENCIMIENTO CREDITO | J23: : | L23: =EDATE(FEC_PRIMER_PAGO,PLAZO-1) -> 2027-02-17
D27: CRONOGRAMA DE PAGOS
D30: NRO | F30: FEC.VCTO | H30: FACTOR | I30: SALDO INICIAL | J30: AMORTIZACION | K30: TASA TEA | L30: INTERES | M30: TASA SEG. DESG. | N30: SEGURO DESGR. | O30: TOTAL INTERES | P30: SEGURO BIEN | Q30: COMISION | R30: PORTES | S30: CUOTA TOTAL | T30: SALDO CAPIT. | U30: SALDO CAPIT.
B31: PG | D31: 0 | E31: =IF(TIPO_CUOTA=2,IF(OR(MONTH(F31)=8,MONTH(F31)=1),2,IF(OR(B31="",B31="PG"),0,1)),IF(OR(B31="",B31="PG"),0,1)) -> 0 | F31: =IF(Datos!D19=1,0,IF(AND(Datos!J19>0,Datos!J19<30),Datos!J18,0)) -> 2022-02-17 | G31: =IF(F31=0,0,F31-FEC_DES_GR) -> 22 | H31: 0 | I31: =IF(F31=0,0,Datos!K23) -> 5577 | J31: =S31-O31 -> -65.52400523 | K31: =(1+TED_0)^G31-1 -> 0.0111990249 | L31: =I31*K31 -> 62.45696187 | M31: =(1+TED_1)^G31-1 -> 0.0005499450174 | N31: =I31*M31 -> 3.067043362 | O31: =L31+N31 -> 65.52400523 | P31: 0 | Q31: 0 | R31: 0 | S31: 0 | T31: =I31 -> 5577 | U31: =I31-J31 -> 5642.524005 | AA31: =IF(F31=0,-T32,-T31) -> -5577 | AB31: =+AA31 -> -5577
B32: =IF(C32<=MESES_GRACIA,"PG",IF(C32-MESES_GRACIA<=PLAZO,"PP","")) -> PP | C32: 1 | D32: =IF(B32="PG",0,IF(B32="PP",D31+1,0)) -> 1 | E32: =IF(TIPO_CUOTA=2,IF(IF(DAY(F32)<=15,IF(OR(MONTH(F32)=8,MONTH(F32)=1),1,0),IF(OR(MONTH(F32)=7,MONTH(F32)=12),1,0)),2,IF(OR(B32="",B32="PG"),0,1)),IF(OR(B32="",B32="PG"),0,1)) -> 1 | F32: =Datos!K18 -> 2022-03-17 | G32: =IF(F31=0,F32-FEC_DES,F32-F31) -> 28 | H32: =IF(OR(B32="PG",B32=""),0, E32*(1/(1+TED)^SUMIF(B$32:B32,"PP",G$32:G32))) -> 0.9852466343 | I32: =IF(F31=0,Datos!K23,U31) -> 5642.524005 | J32: =S32-O32-Q32 -> 63.45905274 | K32: =IF(B32="",0,(1+TED_0)^G32-1) -> 0.0142750124 | L32: =I32*K32 -> 80.54710012 | M32: =IF(B32="",0,(1+TED_1)^G32-1) -> 0.0006999825047 | N32: 3.949668086 | O32: =L32+N32 -> 84.4967682 | P32: 0 | Q32: =IF(B32="PP",COMISION,0) -> 0 | R32: 0 | S32: =IF(OR(B32="PG",B32=""),0,(E32*CUOTA)+Q32) -> 147.9558209 | T32: =I32 -> 5642.524005 | U32: 5579.064952 | AA32: =+S32 -> 147.9558209 | AB32: =+IF(AA32=0,0,AA32-IF(AND(TIPO_CUOTA=2,OR(MONTH(F32)=8,MONTH(F32)=12)),2*Datos!$C$31,Datos!$C$31)) -> 147.9558209
B33: PP | C33: 2 | D33: 2 | E33: 1 | F33: =EDATE(F32,1) -> 2022-04-17 | G33: =IF(F32=0,F33-FEC_DES,F33-F32) -> 31 | H33: =IF(OR(B33="PG",B33=""),0, E33*(1/(1+TED)^SUMIF(B$32:B33,"PP",G$32:G33))) -> 0.9691663091 | I33: =U32 -> 5579.064952 | J33: =S33-O33-Q33 -> 55.39063706 | K33: 0.01581651321 | L33: =I33*K33 -> 88.24135451 | M33: 0.0007750096852 | N33: 4.323829372 | O33: 92.56518388 | P33: 0 | Q33: 0 | R33: 0 | S33: 147.9558209 | T33: =I33 -> 5579.064952 | U33: 5523.674315 | AA33: =+S33 -> 147.9558209 | AB33: =+IF(AA33=0,0,AA33-IF(AND(TIPO_CUOTA=2,OR(MONTH(F33)=8,MONTH(F33)=12)),2*Datos!$C$31,Datos!$C$31)) -> 147.9558209
B34: PP | C34: 3 | D34: 3 | E34: 1 | F34: =EDATE(F33,1) -> 2022-05-17 | G34: 30 | H34: =IF(OR(B34="PG",B34=""),0, E34*(1/(1+TED)^SUMIF(B$32:B34,"PP",G$32:G34))) -> 0.9538546344 | I34: =U33 -> 5523.674315 | J34: 59.28748382 | K34: 0.01530241947 | L34: =I34*K34 -> 84.52558139 | M34: 0.00075 | N34: 4.142755737 | O34: 88.66833713 | P34: 0 | Q34: 0 | R34: 0 | S34: 147.9558209 | T34: 5523.674315 | U34: 5464.386832 | AA34: 147.9558209 | AB34: =+IF(AA34=0,0,AA34-IF(AND(TIPO_CUOTA=2,OR(MONTH(F34)=8,MONTH(F34)=12)),2*Datos!$C$31,Datos!$C$31)) -> 147.9558209
B35: PP | C35: 4 | D35: 4 | E35: 1 | F35: 2022-06-17 | G35: 31 | H35: =IF(OR(B35="PG",B35=""),0, E35*(1/(1+TED)^SUMIF(B$32:B35,"PP",G$32:G35))) -> 0.9382866617 | I35: 5464.386832 | J35: 57.29332173 | K35: 0.01581651321 | L35: =I35*K35 -> 86.42754649 | M35: 0.0007750096852 | N35: 4.234952718 | O35: 90.66249921 | P35: 0 | Q35: 0 | R35: 0 | S35: 147.9558209 | T35: 5464.386832 | U35: 5407.09351 | AA35: 147.9558209 | AB35: =+IF(AA35=0,0,AA35-IF(AND(TIPO_CUOTA=2,OR(MONTH(F35)=8,MONTH(F35)=12)),2*Datos!$C$31,Datos!$C$31)) -> 147.9558209
B36: PP | C36: 5 | D36: 5 | E36: 1 | F36: 2022-07-17 | G36: 30 | H36: =IF(OR(B36="PG",B36=""),0, E36*(1/(1+TED)^SUMIF(B$32:B36,"PP",G$32:G36))) -> 0.9234628487 | I36: 5407.09351 | J36: 61.15888781 | K36: 0.01530241947 | L36: =I36*K36 -> 82.741613 | M36: 0.00075 | N36: 4.055320132 | O36: 86.79693314 | P36: 0 | Q36: 0 | R36: 0 | S36: 147.9558209 | T36: 5407.09351 | U36: 5345.934622 | AA36: 147.9558209 | AB36: =+IF(AA36=0,0,AA36-IF(AND(TIPO_CUOTA=2,OR(MONTH(F36)=8,MONTH(F36)=12)),2*Datos!$C$31,Datos!$C$31)) -> 147.9558209
B37: PP | C37: 6 | D37: 6 | E37: 1 | F37: 2022-08-17 | G37: 31 | H37: =IF(OR(B37="PG",B37=""),0, E37*(1/(1+TED)^SUMIF(B$32:B37,"PP",G$32:G37))) -> 0.9083909039 | I37: 5345.934622 | J37: 59.25862428 | K37: 0.01581651321 | L37: 84.55404556 | M37: 0.0007750096852 | N37: 4.143151108 | O37: 88.69719667 | P37: 0 | Q37: 0 | R37: 0 | S37: 147.9558209 | T37: 5345.934622 | U37: 5286.675998 | AA37: 147.9558209 | AB37: =+IF(AA37=0,0,AA37-IF(AND(TIPO_CUOTA=2,OR(MONTH(F37)=8,MONTH(F37)=12)),2*Datos!$C$31,Datos!$C$31)) -> 147.9558209
B38: PP | C38: 7 | D38: 7 | E38: 1 | F38: 2022-09-17 | G38: 31 | H38: =IF(OR(B38="PG",B38=""),0, E38*(1/(1+TED)^SUMIF(B$32:B38,"PP",G$32:G38))) -> 0.89356495 | I38: 5286.675998 | J38: 60.2418151 | K38: 0.01581651321 | L38: 83.61678074 | M38: 0.0007750096852 | N38: 4.097225101 | O38: 87.71400584 | P38: 0 | Q38: 0 | R38: 0 | S38: 147.9558209 | T38: 5286.675998 | U38: 5226.434183 | AA38: 147.9558209 | AB38: =+IF(AA38=0,0,AA38-IF(AND(TIPO_CUOTA=2,OR(MONTH(F38)=8,MONTH(F38)=12)),2*Datos!$C$31,Datos!$C$31)) -> 147.9558209
B39: PP | C39: 8 | D39: 8 | E39: 1 | F39: 2022-10-17 | G39: 30 | H39: =IF(OR(B39="PG",B39=""),0, E39*(1/(1+TED)^SUMIF(B$32:B39,"PP",G$32:G39))) -> 0.8794476869 | I39: 5226.434183 | J39: 64.05890711 | K39: 0.01530241947 | L39: 79.9770882 | M39: 0.00075 | N39: 3.919825637 | O39: 83.89691383 | P39: 0 | Q39: 0 | R39: 0 | S39: 147.9558209 | T39: 5226.434183 | U39: 5162.375276 | AA39: 147.9558209 | AB39: =+IF(AA39=0,0,AA39-IF(AND(TIPO_CUOTA=2,OR(MONTH(F39)=8,MONTH(F39)=12)),2*Datos!$C$31,Datos!$C$31)) -> 147.9558209
B40: PP | C40: 9 | D40: 9 | E40: 1 | F40: 2022-11-17 | G40: 31 | H40: =IF(OR(B40="PG",B40=""),0, E40*(1/(1+TED)^SUMIF(B$32:B40,"PP",G$32:G40))) -> 0.8650941186 | I40: 5162.375276 | J40: 62.30415338 | K40: 0.01581651321 | L40: 81.65077673 | M40: 0.0007750096852 | N40: 4.000890837 | O40: 85.65166757 | P40: 0 | Q40: 0 | R40: 0 | S40: 147.9558209 | T40: 5162.375276 | U40: 5100.071122 | AA40: 147.9558209 | AB40: =+IF(AA40=0,0,AA40-IF(AND(TIPO_CUOTA=2,OR(MONTH(F40)=8,MONTH(F40)=12)),2*Datos!$C$31,Datos!$C$31)) -> 147.9558209
B41: PP | C41: 10 | D41: 10 | E41: 1 | F41: 2022-12-17 | G41: 30 | H41: =IF(OR(B41="PG",B41=""),0, E41*(1/(1+TED)^SUMIF(B$32:B41,"PP",G$32:G41))) -> 0.8514266607 | I41: 5100.071122 | J41: 66.08733996 | K41: 0.01530241947 | L41: 78.04342764 | M41: 0.00075 | N41: 3.825053342 | O41: 81.86848098 | P41: 0 | Q41: 0 | R41: 0 | S41: 147.9558209 | T41: 5100.071122 | U41: 5033.983782 | AA41: 147.9558209 | AB41: =+IF(AA41=0,0,AA41-IF(AND(TIPO_CUOTA=2,OR(MONTH(F41)=8,MONTH(F41)=12)),2*Datos!$C$31,Datos!$C$31)) -> 147.9558209
B42: PP | C42: 11 | D42: 11 | E42: 1 | F42: 2023-01-17 | G42: 31 | H42: =IF(OR(B42="PG",B42=""),0, E42*(1/(1+TED)^SUMIF(B$32:B42,"PP",G$32:G42))) -> 0.8375304269 | I42: 5033.983782 | J42: 64.43436378 | K42: 0.01581651321 | L42: 79.62007098 | M42: 0.0007750096852 | N42: 3.901386186 | O42: 83.52145717 | P42: 0 | Q42: 0 | R42: 0 | S42: 147.9558209 | T42: 5033.983782 | U42: 4969.549418 | AA42: 147.9558209 | AB42: =+IF(AA42=0,0,AA42-IF(AND(TIPO_CUOTA=2,OR(MONTH(F42)=8,MONTH(F42)=12)),2*Datos!$C$31,Datos!$C$31)) -> 147.9558209
B43: PP | C43: 12 | D43: 12 | E43: 1 | F43: 2023-02-17 | G43: 31 | H43: =IF(OR(B43="PG",B43=""),0, E43*(1/(1+TED)^SUMIF(B$32:B43,"PP",G$32:G43))) -> 0.8238609952 | I43: 4969.549418 | J43: 65.503428 | K43: 0.01581651321 | L43: 78.60094401 | M43: 0.0007750096852 | N43: 3.85144893 | O43: 82.45239294 | P43: 0 | Q43: 0 | R43: 0 | S43: 147.9558209 | T43: 4969.549418 | U43: 4904.04599 | AA43: 147.9558209 | AB43: =+IF(AA43=0,0,AA43-IF(AND(TIPO_CUOTA=2,OR(MONTH(F43)=8,MONTH(F43)=12)),2*Datos!$C$31,Datos!$C$31)) -> 147.9558209
B44: PP | C44: 13 | D44: 13 | E44: 1 | F44: 2023-03-17 | G44: 28 | H44: =IF(OR(B44="PG",B44=""),0, E44*(1/(1+TED)^SUMIF(B$32:B44,"PP",G$32:G44))) -> 0.8117062726 | I44: =U43 -> 4904.04599 | J44: 74.51775725 | K44: 0.0142750124 | L44: =I44*K44 -> 70.0053173 | M44: 0.0006999825047 | N44: 3.432746395 | O44: 73.4380637 | P44: 0 | Q44: 0 | R44: 0 | S44: 147.9558209 | T44: 4904.04599 | U44: =I44-J44 -> 4829.528233 | AA44: 147.9558209 | AB44: =+IF(AA44=0,0,AA44-IF(AND(TIPO_CUOTA=2,OR(MONTH(F44)=8,MONTH(F44)=12)),2*Datos!$C$31,Datos!$C$31)) -> 147.9558209
B45: PP | C45: 14 | D45: 14 | E45: 1 | F45: 2023-04-17 | G45: 31 | H45: =IF(OR(B45="PG",B45=""),0, E45*(1/(1+TED)^SUMIF(B$32:B45,"PP",G$32:G45))) -> 0.7984583199 | I45: 4829.528233 | J45: 67.8265927 | K45: 0.01581651321 | L45: 76.38629709 | M45: 0.0007750096852 | N45: 3.742931155 | O45: 80.12922824 | P45: 0 | Q45: 0 | R45: 0 | S45: 147.9558209 | T45: 4829.528233 | U45: 4761.701641 | AA45: 147.9558209 | AB45: =+IF(AA45=0,0,AA45-IF(AND(TIPO_CUOTA=2,OR(MONTH(F45)=8,MONTH(F45)=12)),2*Datos!$C$31,Datos!$C$31)) -> 147.9558209
B46: PP | C46: 15 | D46: 15 | E46: 1 | F46: 2023-05-17 | G46: 30 | H46: =IF(OR(B46="PG",B46=""),0, E46*(1/(1+TED)^SUMIF(B$32:B46,"PP",G$32:G46))) -> 0.7858436284 | I46: 4761.701641 | J46: 71.51898882 | K46: 0.01530241947 | L46: 72.8655559 | M46: 0.00075 | N46: 3.57127623 | O46: 76.43683213 | P46: 0 | Q46: 0 | R46: 0 | S46: 147.9558209 | T46: 4761.701641 | U46: 4690.182652 | AA46: 147.9558209 | AB46: =+IF(AA46=0,0,AA46-IF(AND(TIPO_CUOTA=2,OR(MONTH(F46)=8,MONTH(F46)=12)),2*Datos!$C$31,Datos!$C$31)) -> 147.9558209
B47: PP | C47: 16 | D47: 16 | E47: 1 | F47: 2023-06-17 | G47: 31 | H47: =IF(OR(B47="PG",B47=""),0, E47*(1/(1+TED)^SUMIF(B$32:B47,"PP",G$32:G47))) -> 0.7730177829 | I47: 4690.182652 | J47: 70.13854811 | K47: 0.01581651321 | L47: 74.18233586 | M47: 0.0007750096852 | N47: 3.63493698 | O47: 77.81727284 | P47: 0 | Q47: 0 | R47: 0 | S47: 147.9558209 | T47: 4690.182652 | U47: 4620.044104 | AA47: 147.9558209 | AB47: =+IF(AA47=0,0,AA47-IF(AND(TIPO_CUOTA=2,OR(MONTH(F47)=8,MONTH(F47)=12)),2*Datos!$C$31,Datos!$C$31)) -> 147.9558209
B48: PP | C48: 17 | D48: 17 | E48: 1 | F48: 2023-07-17 | G48: 30 | H48: =IF(OR(B48="PG",B48=""),0, E48*(1/(1+TED)^SUMIF(B$32:B48,"PP",G$32:G48))) -> 0.7608050215 | I48: 4620.044104 | J48: 73.79293502 | K48: 0.01530241947 | L48: 70.69785284 | M48: 0.00075 | N48: 3.465033078 | O48: 74.16288592 | P48: 0 | Q48: 0 | R48: 0 | S48: 147.9558209 | T48: 4620.044104 | U48: 4546.251169 | AA48: 147.9558209 | AB48: =+IF(AA48=0,0,AA48-IF(AND(TIPO_CUOTA=2,OR(MONTH(F48)=8,MONTH(F48)=12)),2*Datos!$C$31,Datos!$C$31)) -> 147.9558209
B49: PP | C49: 18 | D49: 18 | E49: 1 | F49: 2023-08-17 | G49: 31 | H49: =IF(OR(B49="PG",B49=""),0, E49*(1/(1+TED)^SUMIF(B$32:B49,"PP",G$32:G49))) -> 0.7483878341 | I49: 4546.251169 | J49: 72.5265906 | K49: 0.01581651321 | L49: 71.90584165 | M49: 0.0007750096852 | N49: 3.523388687 | O49: 75.42923034 | P49: 0 | Q49: 0 | R49: 0 | S49: 147.9558209 | T49: 4546.251169 | U49: 4473.724578 | AA49: 147.9558209 | AB49: =+IF(AA49=0,0,AA49-IF(AND(TIPO_CUOTA=2,OR(MONTH(F49)=8,MONTH(F49)=12)),2*Datos!$C$31,Datos!$C$31)) -> 147.9558209
B50: PP | C50: 19 | D50: 19 | E50: 1 | F50: 2023-09-17 | G50: 31 | H50: =IF(OR(B50="PG",B50=""),0, E50*(1/(1+TED)^SUMIF(B$32:B50,"PP",G$32:G50))) -> 0.736173309 | I50: 4473.724578 | J50: 73.72991719 | K50: 0.01581651321 | L50: 70.75872387 | M50: 0.0007750096852 | N50: 3.467179877 | O50: 74.22590375 | P50: 0 | Q50: 0 | R50: 0 | S50: 147.9558209 | T50: 4473.724578 | U50: 4399.994661 | AA50: 147.9558209 | AB50: =+IF(AA50=0,0,AA50-IF(AND(TIPO_CUOTA=2,OR(MONTH(F50)=8,MONTH(F50)=12)),2*Datos!$C$31,Datos!$C$31)) -> 147.9558209
B51: PP | C51: 20 | D51: 20 | E51: 1 | F51: 2023-10-17 | G51: 30 | H51: =IF(OR(B51="PG",B51=""),0, E51*(1/(1+TED)^SUMIF(B$32:B51,"PP",G$32:G51))) -> 0.7245426465 | I51: 4399.994661 | J51: 77.32526098 | K51: 0.01530241947 | L51: 67.33056397 | M51: 0.00075 | N51: 3.299995996 | O51: 70.63055996 | P51: 0 | Q51: 0 | R51: 0 | S51: 147.9558209 | T51: 4399.994661 | U51: 4322.6694 | AA51: 147.9558209 | AB51: =+IF(AA51=0,0,AA51-IF(AND(TIPO_CUOTA=2,OR(MONTH(F51)=8,MONTH(F51)=12)),2*Datos!$C$31,Datos!$C$31)) -> 147.9558209
B52: PP | C52: 21 | D52: 21 | E52: 1 | F52: 2023-11-17 | G52: 31 | H52: =IF(OR(B52="PG",B52=""),0, E52*(1/(1+TED)^SUMIF(B$32:B52,"PP",G$32:G52))) -> 0.7127173015 | I52: 4322.6694 | J52: 76.23615264 | K52: 0.01581651321 | L52: 68.36955765 | M52: 0.0007750096852 | N52: 3.350110651 | O52: 71.7196683 | P52: 0 | Q52: 0 | R52: 0 | S52: 147.9558209 | T52: 4322.6694 | U52: 4246.433247 | AA52: 147.9558209 | AB52: =+IF(AA52=0,0,AA52-IF(AND(TIPO_CUOTA=2,OR(MONTH(F52)=8,MONTH(F52)=12)),2*Datos!$C$31,Datos!$C$31)) -> 147.9558209
B53: PP | C53: 22 | D53: 22 | E53: 1 | F53: 2023-12-17 | G53: 30 | H53: =IF(OR(B53="PG",B53=""),0, E53*(1/(1+TED)^SUMIF(B$32:B53,"PP",G$32:G53))) -> 0.701457216 | I53: 4246.433247 | J53: 79.79029321 | K53: 0.01530241947 | L53: 64.9807028 | M53: 0.00075 | N53: 3.184824935 | O53: 68.16552774 | P53: 0 | Q53: 0 | R53: 0 | S53: 147.9558209 | T53: 4246.433247 | U53: 4166.642954 | AA53: 147.9558209 | AB53: =+IF(AA53=0,0,AA53-IF(AND(TIPO_CUOTA=2,OR(MONTH(F53)=8,MONTH(F53)=12)),2*Datos!$C$31,Datos!$C$31)) -> 147.9558209
B54: PP | C54: 23 | D54: 23 | E54: 1 | F54: 2024-01-17 | G54: 31 | H54: =IF(OR(B54="PG",B54=""),0, E54*(1/(1+TED)^SUMIF(B$32:B54,"PP",G$32:G54))) -> 0.690008651 | I54: 4166.642954 | J54: 78.82486899 | K54: 0.01581651321 | L54: 65.90176331 | M54: 0.0007750096852 | N54: 3.229188644 | O54: 69.13095196 | P54: 0 | Q54: 0 | R54: 0 | S54: 147.9558209 | T54: 4166.642954 | U54: 4087.818085 | AA54: 147.9558209 | AB54: =+IF(AA54=0,0,AA54-IF(AND(TIPO_CUOTA=2,OR(MONTH(F54)=8,MONTH(F54)=12)),2*Datos!$C$31,Datos!$C$31)) -> 147.9558209
B55: PP | C55: 24 | D55: 24 | E55: 1 | F55: 2024-02-17 | G55: 31 | H55: =IF(OR(B55="PG",B55=""),0, E55*(1/(1+TED)^SUMIF(B$32:B55,"PP",G$32:G55))) -> 0.6787469394 | I55: 4087.818085 | J55: 80.1326936 | K55: 0.01581651321 | L55: 64.65502873 | M55: 0.0007750096852 | N55: 3.168098607 | O55: 67.82312734 | P55: 0 | Q55: 0 | R55: 0 | S55: 147.9558209 | T55: 4087.818085 | U55: 4007.685391 | AA55: 147.9558209 | AB55: =+IF(AA55=0,0,AA55-IF(AND(TIPO_CUOTA=2,OR(MONTH(F55)=8,MONTH(F55)=12)),2*Datos!$C$31,Datos!$C$31)) -> 147.9558209
B56: PP | C56: 25 | D56: 25 | E56: 1 | F56: 2024-03-17 | G56: 29 | H56: =IF(OR(B56="PG",B56=""),0, E56*(1/(1+TED)^SUMIF(B$32:B56,"PP",G$32:G56))) -> 0.6683782472 | I56: 4007.685391 | J56: 85.78228563 | K56: 0.01478858591 | L56: 59.26799971 | M56: 0.0007249909398 | N56: 2.905535598 | O56: 62.17353531 | P56: 0 | Q56: 0 | R56: 0 | S56: 147.9558209 | T56: 4007.685391 | U56: 3921.903106 | AA56: 147.9558209 | AB56: =+IF(AA56=0,0,AA56-IF(AND(TIPO_CUOTA=2,OR(MONTH(F56)=8,MONTH(F56)=12)),2*Datos!$C$31,Datos!$C$31)) -> 147.9558209
B57: PP | C57: 26 | D57: 26 | E57: 1 | F57: 2024-04-17 | G57: 31 | H57: =IF(OR(B57="PG",B57=""),0, E57*(1/(1+TED)^SUMIF(B$32:B57,"PP",G$32:G57))) -> 0.6574695679 | I57: 3921.903106 | J57: 82.88547578 | K57: 0.01581651321 | L57: 62.03083227 | M57: 0.0007750096852 | N57: 3.039512891 | O57: 65.07034516 | P57: 0 | Q57: 0 | R57: 0 | S57: 147.9558209 | T57: 3921.903106 | U57: 3839.01763 | AA57: 147.9558209 | AB57: =+IF(AA57=0,0,AA57-IF(AND(TIPO_CUOTA=2,OR(MONTH(F57)=8,MONTH(F57)=12)),2*Datos!$C$31,Datos!$C$31)) -> 147.9558209
B58: PP | C58: 27 | D58: 27 | E58: 1 | F58: 2024-05-17 | G58: 30 | H58: =IF(OR(B58="PG",B58=""),0, E58*(1/(1+TED)^SUMIF(B$32:B58,"PP",G$32:G58))) -> 0.6470823309 | I58: 3839.01763 | J58: 86.33029959 | K58: 0.01530241947 | L58: 58.74625813 | M58: 0.00075 | N58: 2.879263222 | O58: 61.62552135 | P58: 0 | Q58: 0 | R58: 0 | S58: 147.9558209 | T58: 3839.01763 | U58: 3752.68733 | AA58: 147.9558209 | AB58: =+IF(AA58=0,0,AA58-IF(AND(TIPO_CUOTA=2,OR(MONTH(F58)=8,MONTH(F58)=12)),2*Datos!$C$31,Datos!$C$31)) -> 147.9558209
B59: PP | C59: 28 | D59: 28 | E59: 1 | F59: 2024-06-17 | G59: 31 | H59: =IF(OR(B59="PG",B59=""),0, E59*(1/(1+TED)^SUMIF(B$32:B59,"PP",G$32:G59))) -> 0.6365212248 | I59: 3752.68733 | J59: 85.69302319 | K59: 0.01581651321 | L59: 59.35442872 | M59: 0.0007750096852 | N59: 2.908369026 | O59: 62.26279775 | P59: 0 | Q59: 0 | R59: 0 | S59: 147.9558209 | T59: 3752.68733 | U59: 3666.994307 | AA59: 147.9558209 | AB59: =+IF(AA59=0,0,AA59-IF(AND(TIPO_CUOTA=2,OR(MONTH(F59)=8,MONTH(F59)=12)),2*Datos!$C$31,Datos!$C$31)) -> 147.9558209
B60: PP | C60: 29 | D60: 29 | E60: 1 | F60: 2024-07-17 | G60: 30 | H60: =IF(OR(B60="PG",B60=""),0, E60*(1/(1+TED)^SUMIF(B$32:B60,"PP",G$32:G60))) -> 0.6264649466 | I60: 3666.994307 | J60: 89.09169013 | K60: 0.01530241947 | L60: 56.11388508 | M60: 0.00075 | N60: 2.75024573 | O60: 58.86413081 | P60: 0 | Q60: 0 | R60: 0 | S60: 147.9558209 | T60: 3666.994307 | U60: 3577.902617 | AA60: 147.9558209 | AB60: =+IF(AA60=0,0,AA60-IF(AND(TIPO_CUOTA=2,OR(MONTH(F60)=8,MONTH(F60)=12)),2*Datos!$C$31,Datos!$C$31)) -> 147.9558209
B61: PP | C61: 30 | D61: 30 | E61: 1 | F61: 2024-08-17 | G61: 31 | H61: =IF(OR(B61="PG",B61=""),0, E61*(1/(1+TED)^SUMIF(B$32:B61,"PP",G$32:G61))) -> 0.6162403392 | I61: 3577.902617 | J61: 88.59296776 | K61: 0.01581651321 | L61: 56.589944 | M61: 0.0007750096852 | N61: 2.772909181 | O61: 59.36285318 | P61: 0 | Q61: 0 | R61: 0 | S61: 147.9558209 | T61: 3577.902617 | U61: 3489.309649 | AA61: 147.9558209 | AB61: =+IF(AA61=0,0,AA61-IF(AND(TIPO_CUOTA=2,OR(MONTH(F61)=8,MONTH(F61)=12)),2*Datos!$C$31,Datos!$C$31)) -> 147.9558209
B62: PP | C62: 31 | D62: 31 | E62: 1 | F62: 2024-09-17 | G62: 31 | H62: =IF(OR(B62="PG",B62=""),0, E62*(1/(1+TED)^SUMIF(B$32:B62,"PP",G$32:G62))) -> 0.6061826088 | I62: 3489.309649 | J62: 90.06286002 | K62: 0.01581651321 | L62: 55.18871215 | M62: 0.0007750096852 | N62: 2.704248773 | O62: 57.89296093 | P62: 0 | Q62: 0 | R62: 0 | S62: 147.9558209 | T62: 3489.309649 | U62: 3399.246789 | AA62: 147.9558209 | AB62: =+IF(AA62=0,0,AA62-IF(AND(TIPO_CUOTA=2,OR(MONTH(F62)=8,MONTH(F62)=12)),2*Datos!$C$31,Datos!$C$31)) -> 147.9558209
B63: PP | C63: 32 | D63: 32 | E63: 1 | F63: 2024-10-17 | G63: 30 | H63: =IF(OR(B63="PG",B63=""),0, E63*(1/(1+TED)^SUMIF(B$32:B63,"PP",G$32:G63))) -> 0.5966056447 | I63: 3399.246789 | J63: 93.3896856 | K63: 0.01530241947 | L63: 52.01670025 | M63: 0.00075 | N63: =I63*M63 -> 2.549435092 | O63: 54.56613534 | P63: 0 | Q63: 0 | R63: 0 | S63: 147.9558209 | T63: 3399.246789 | U63: 3305.857104 | AA63: 147.9558209 | AB63: =+IF(AA63=0,0,AA63-IF(AND(TIPO_CUOTA=2,OR(MONTH(F63)=8,MONTH(F63)=12)),2*Datos!$C$31,Datos!$C$31)) -> 147.9558209
B64: =IF(C64<=MESES_GRACIA,"PG",IF(C64-MESES_GRACIA<=PLAZO,"PP","")) -> PP | C64: 33 | D64: =IF(B64="PG",0,IF(B64="PP",D63+1,0)) -> 33 | E64: =IF(TIPO_CUOTA=2,IF(IF(DAY(F64)<=15,IF(OR(MONTH(F64)=8,MONTH(F64)=1),1,0),IF(OR(MONTH(F64)=7,MONTH(F64)=12),1,0)),2,IF(OR(B64="",B64="PG"),0,1)),IF(OR(B64="",B64="PG"),0,1)) -> 1 | F64: 2024-11-17 | G64: =IF(F63=0,F64-FEC_DES,F64-F63) -> 31 | H64: =IF(OR(B64="PG",B64=""),0, E64*(1/(1+TED)^SUMIF(B$32:B64,"PP",G$32:G64))) -> 0.5868683744 | I64: 3305.857104 | J64: 93.10661713 | K64: =IF(B64="",0,(1+TED_0)^G64-1) -> 0.01581651321 | L64: 52.28713254 | M64: =IF(B64="",0,(1+TED_1)^G64-1) -> 0.0007750096852 | N64: 2.562071273 | O64: 54.84920382 | P64: 0 | Q64: =IF(B64="PP",COMISION,0) -> 0 | R64: 0 | S64: =IF(OR(B64="PG",B64=""),0,(E64*CUOTA)+Q64) -> 147.9558209 | T64: 3305.857104 | U64: 3212.750487 | AA64: 147.9558209 | AB64: =+IF(AA64=0,0,AA64-IF(AND(TIPO_CUOTA=2,OR(MONTH(F64)=8,MONTH(F64)=12)),2*Datos!$C$31,Datos!$C$31)) -> 147.9558209
B65: PP | C65: 34 | D65: 34 | E65: 1 | F65: 2024-12-17 | G65: 30 | H65: =IF(OR(B65="PG",B65=""),0, E65*(1/(1+TED)^SUMIF(B$32:B65,"PP",G$32:G65))) -> 0.5775965523 | I65: 3212.750487 | J65: 96.38340248 | K65: 0.01530241947 | L65: 49.1628556 | M65: 0.00075 | N65: 2.409562865 | O65: 51.57241846 | P65: 0 | Q65: 0 | R65: 0 | S65: 147.9558209 | T65: 3212.750487 | U65: 3116.367084 | AA65: 147.9558209 | AB65: =+IF(AA65=0,0,AA65-IF(AND(TIPO_CUOTA=2,OR(MONTH(F65)=8,MONTH(F65)=12)),2*Datos!$C$31,Datos!$C$31)) -> 147.9558209
B66: PP | C66: 35 | D66: 35 | E66: 1 | F66: 2025-01-17 | G66: 31 | H66: =IF(OR(B66="PG",B66=""),0, E66*(1/(1+TED)^SUMIF(B$32:B66,"PP",G$32:G66))) -> 0.5681695316 | I66: 3116.367084 | J66: 96.25054513 | K66: 0.01581651321 | L66: 49.29006114 | M66: 0.0007750096852 | N66: 2.415214673 | O66: 51.70527582 | P66: 0 | Q66: 0 | R66: 0 | S66: 147.9558209 | T66: 3116.367084 | U66: 3020.116539 | AA66: 147.9558209 | AB66: =+IF(AA66=0,0,AA66-IF(AND(TIPO_CUOTA=2,OR(MONTH(F66)=8,MONTH(F66)=12)),2*Datos!$C$31,Datos!$C$31)) -> 147.9558209
B67: PP | C67: 36 | D67: 36 | E67: 1 | F67: 2025-02-17 | G67: 31 | H67: =IF(OR(B67="PG",B67=""),0, E67*(1/(1+TED)^SUMIF(B$32:B67,"PP",G$32:G67))) -> 0.5588963705 | I67: 3020.116539 | J67: 97.84748825 | K67: 0.01581651321 | L67: 47.76771313 | M67: 0.0007750096852 | N67: 2.340619568 | O67: 50.10833269 | P67: 0 | Q67: 0 | R67: 0 | S67: 147.9558209 | T67: 3020.116539 | U67: 2922.269051 | AA67: 147.9558209 | AB67: =+IF(AA67=0,0,AA67-IF(AND(TIPO_CUOTA=2,OR(MONTH(F67)=8,MONTH(F67)=12)),2*Datos!$C$31,Datos!$C$31)) -> 147.9558209
B68: PP | C68: 37 | D68: 37 | E68: 1 | F68: 2025-03-17 | G68: 28 | H68: =IF(OR(B68="PG",B68=""),0, E68*(1/(1+TED)^SUMIF(B$32:B68,"PP",G$32:G68))) -> 0.5506507679 | I68: 2922.269051 | J68: 104.1948568 | K68: 0.0142750124 | L68: 41.71542692 | M68: 0.0006999825047 | N68: 2.045537209 | O68: 43.76096413 | P68: 0 | Q68: 0 | R68: 0 | S68: 147.9558209 | T68: 2922.269051 | U68: 2818.074194 | AA68: 147.9558209 | AB68: =+IF(AA68=0,0,AA68-IF(AND(TIPO_CUOTA=2,OR(MONTH(F68)=8,MONTH(F68)=12)),2*Datos!$C$31,Datos!$C$31)) -> 147.9558209
B69: PP | C69: 38 | D69: 38 | E69: 1 | F69: 2025-04-17 | G69: 31 | H69: =IF(OR(B69="PG",B69=""),0, E69*(1/(1+TED)^SUMIF(B$32:B69,"PP",G$32:G69))) -> 0.5416635325 | I69: 2818.074194 | J69: 101.1996784 | K69: 0.01581651321 | L69: 44.57210771 | M69: 0.0007750096852 | N69: 2.184034794 | O69: 46.7561425 | P69: 0 | Q69: 0 | R69: 0 | S69: 147.9558209 | T69: 2818.074194 | U69: 2716.874515 | AA69: 147.9558209 | AB69: =+IF(AA69=0,0,AA69-IF(AND(TIPO_CUOTA=2,OR(MONTH(F69)=8,MONTH(F69)=12)),2*Datos!$C$31,Datos!$C$31)) -> 147.9558209
B70: PP | C70: 39 | D70: 39 | E70: 1 | F70: 2025-05-17 | G70: 30 | H70: =IF(OR(B70="PG",B70=""),0, E70*(1/(1+TED)^SUMIF(B$32:B70,"PP",G$32:G70))) -> 0.5331058931 | I70: 2716.874515 | J70: 104.3434116 | K70: 0.01530241947 | L70: 41.57475348 | M70: 0.00075 | N70: 2.037655887 | O70: 43.61240937 | P70: 0 | Q70: 0 | R70: 0 | S70: 147.9558209 | T70: 2716.874515 | U70: 2612.531104 | AA70: 147.9558209 | AB70: =+IF(AA70=0,0,AA70-IF(AND(TIPO_CUOTA=2,OR(MONTH(F70)=8,MONTH(F70)=12)),2*Datos!$C$31,Datos!$C$31)) -> 147.9558209
B71: PP | C71: 40 | D71: 40 | E71: 1 | F71: 2025-06-17 | G71: 31 | H71: =IF(OR(B71="PG",B71=""),0, E71*(1/(1+TED)^SUMIF(B$32:B71,"PP",G$32:G71))) -> 0.5244050097 | I71: 2612.531104 | J71: 104.6099513 | K71: 0.01581651321 | L71: 41.32113271 | M71: 0.0007750096852 | N71: 2.024736908 | O71: 43.34586962 | P71: 0 | Q71: 0 | R71: 0 | S71: 147.9558209 | T71: 2612.531104 | U71: 2507.921153 | AA71: 147.9558209 | AB71: =+IF(AA71=0,0,AA71-IF(AND(TIPO_CUOTA=2,OR(MONTH(F71)=8,MONTH(F71)=12)),2*Datos!$C$31,Datos!$C$31)) -> 147.9558209
B72: PP | C72: 41 | D72: 41 | E72: 1 | F72: 2025-07-17 | G72: 30 | H72: =IF(OR(B72="PG",B72=""),0, E72*(1/(1+TED)^SUMIF(B$32:B72,"PP",G$32:G72))) -> 0.5161200344 | I72: 2507.921153 | J72: 107.6976186 | K72: 0.01530241947 | L72: 38.37726147 | M72: 0.00075 | N72: 1.880940864 | O72: 40.25820234 | P72: 0 | Q72: 0 | R72: 0 | S72: 147.9558209 | T72: 2507.921153 | U72: 2400.223534 | AA72: 147.9558209 | AB72: =+IF(AA72=0,0,AA72-IF(AND(TIPO_CUOTA=2,OR(MONTH(F72)=8,MONTH(F72)=12)),2*Datos!$C$31,Datos!$C$31)) -> 147.9558209
B73: PP | C73: 42 | D73: 42 | E73: 1 | F73: 2025-08-17 | G73: 31 | H73: =IF(OR(B73="PG",B73=""),0, E73*(1/(1+TED)^SUMIF(B$32:B73,"PP",G$32:G73))) -> 0.5076963791 | I73: 2400.223534 | J73: 108.1324572 | K73: 0.01581651321 | L73: 37.96316723 | M73: 0.0007750096852 | N73: 1.860196485 | O73: 39.82336371 | P73: 0 | Q73: 0 | R73: 0 | S73: 147.9558209 | T73: 2400.223534 | U73: 2292.091077 | AA73: 147.9558209 | AB73: =+IF(AA73=0,0,AA73-IF(AND(TIPO_CUOTA=2,OR(MONTH(F73)=8,MONTH(F73)=12)),2*Datos!$C$31,Datos!$C$31)) -> 147.9558209
B74: PP | C74: 43 | D74: 43 | E74: 1 | F74: 2025-09-17 | G74: 31 | H74: =IF(OR(B74="PG",B74=""),0, E74*(1/(1+TED)^SUMIF(B$32:B74,"PP",G$32:G74))) -> 0.4994102073 | I74: 2292.091077 | J74: 109.9265394 | K74: 0.01581651321 | L74: 36.25288879 | M74: 0.0007750096852 | N74: 1.776392784 | O74: 38.02928157 | P74: 0 | Q74: 0 | R74: 0 | S74: 147.9558209 | T74: 2292.091077 | U74: 2182.164537 | AA74: 147.9558209 | AB74: =+IF(AA74=0,0,AA74-IF(AND(TIPO_CUOTA=2,OR(MONTH(F74)=8,MONTH(F74)=12)),2*Datos!$C$31,Datos!$C$31)) -> 147.9558209
B75: PP | C75: 44 | D75: 44 | E75: 1 | F75: 2025-10-17 | G75: 30 | H75: =IF(OR(B75="PG",B75=""),0, E75*(1/(1+TED)^SUMIF(B$32:B75,"PP",G$32:G75))) -> 0.4915201202 | I75: 2182.164537 | J75: 112.9268004 | K75: 0.01530241947 | L75: 33.3923971 | M75: 0.00075 | N75: 1.636623403 | O75: 35.02902051 | P75: 0 | Q75: 0 | R75: 0 | S75: 147.9558209 | T75: 2182.164537 | U75: 2069.237737 | AA75: 147.9558209 | AB75: =+IF(AA75=0,0,AA75-IF(AND(TIPO_CUOTA=2,OR(MONTH(F75)=8,MONTH(F75)=12)),2*Datos!$C$31,Datos!$C$31)) -> 147.9558209
B76: PP | C76: 45 | D76: 45 | E76: 1 | F76: 2025-11-17 | G76: 31 | H76: =IF(OR(B76="PG",B76=""),0, E76*(1/(1+TED)^SUMIF(B$32:B76,"PP",G$32:G76))) -> 0.483497963 | I76: 2069.237737 | J76: 113.6240157 | K76: 0.01581651321 | L76: 32.72812599 | M76: 0.0007750096852 | N76: 1.603679287 | O76: 34.33180528 | P76: 0 | Q76: 0 | R76: 0 | S76: 147.9558209 | T76: 2069.237737 | U76: 1955.613721 | AA76: 147.9558209 | AB76: =+IF(AA76=0,0,AA76-IF(AND(TIPO_CUOTA=2,OR(MONTH(F76)=8,MONTH(F76)=12)),2*Datos!$C$31,Datos!$C$31)) -> 147.9558209
B77: PP | C77: 46 | D77: 46 | E77: 1 | F77: 2025-12-17 | G77: 30 | H77: =IF(OR(B77="PG",B77=""),0, E77*(1/(1+TED)^SUMIF(B$32:B77,"PP",G$32:G77))) -> 0.4758592704 | I77: 1955.613721 | J77: 116.5634892 | K77: 0.01530241947 | L77: 29.92562148 | M77: 0.00075 | N77: 1.466710291 | O77: 31.39233177 | P77: 0 | Q77: 0 | R77: 0 | S77: 147.9558209 | T77: 1955.613721 | U77: 1839.050232 | AA77: 147.9558209 | AB77: =+IF(AA77=0,0,AA77-IF(AND(TIPO_CUOTA=2,OR(MONTH(F77)=8,MONTH(F77)=12)),2*Datos!$C$31,Datos!$C$31)) -> 147.9558209
B78: PP | C78: 47 | D78: 47 | E78: 1 | F78: 2026-01-17 | G78: 31 | H78: =IF(OR(B78="PG",B78=""),0, E78*(1/(1+TED)^SUMIF(B$32:B78,"PP",G$32:G78))) -> 0.4680927158 | I78: 1839.050232 | J78: 117.4431769 | K78: 0.01581651321 | L78: 29.08736228 | M78: 0.0007750096852 | N78: 1.425281741 | O78: 30.51264403 | P78: 0 | Q78: 0 | R78: 0 | S78: 147.9558209 | T78: 1839.050232 | U78: 1721.607055 | AA78: 147.9558209 | AB78: =+IF(AA78=0,0,AA78-IF(AND(TIPO_CUOTA=2,OR(MONTH(F78)=8,MONTH(F78)=12)),2*Datos!$C$31,Datos!$C$31)) -> 147.9558209
B79: PP | C79: 48 | D79: 48 | E79: 1 | F79: 2026-02-17 | G79: 31 | H79: =IF(OR(B79="PG",B79=""),0, E79*(1/(1+TED)^SUMIF(B$32:B79,"PP",G$32:G79))) -> 0.46045292 | I79: 1721.607055 | J79: 119.3917381 | K79: 0.01581651321 | L79: 27.22982073 | M79: 0.0007750096852 | N79: 1.334262142 | O79: 28.56408287 | P79: 0 | Q79: 0 | R79: 0 | S79: 147.9558209 | T79: 1721.607055 | U79: 1602.215317 | AA79: 147.9558209 | AB79: =+IF(AA79=0,0,AA79-IF(AND(TIPO_CUOTA=2,OR(MONTH(F79)=8,MONTH(F79)=12)),2*Datos!$C$31,Datos!$C$31)) -> 147.9558209
B80: PP | C80: 49 | D80: 49 | E80: 1 | F80: 2026-03-17 | G80: 28 | H80: =IF(OR(B80="PG",B80=""),0, E80*(1/(1+TED)^SUMIF(B$32:B80,"PP",G$32:G80))) -> 0.4536596897 | I80: 1602.215317 | J80: 123.9626547 | K80: 0.0142750124 | L80: 22.87164351 | M80: 0.0006999825047 | N80: 1.121522691 | O80: 23.9931662 | P80: 0 | Q80: 0 | R80: 0 | S80: 147.9558209 | T80: 1602.215317 | U80: 1478.252662 | AA80: 147.9558209 | AB80: =+IF(AA80=0,0,AA80-IF(AND(TIPO_CUOTA=2,OR(MONTH(F80)=8,MONTH(F80)=12)),2*Datos!$C$31,Datos!$C$31)) -> 147.9558209
B81: PP | C81: 50 | D81: 50 | E81: 1 | F81: 2026-04-17 | G81: 31 | H81: =IF(OR(B81="PG",B81=""),0, E81*(1/(1+TED)^SUMIF(B$32:B81,"PP",G$32:G81))) -> 0.446255457 | I81: 1478.252662 | J81: 123.4293581 | K81: 0.01581651321 | L81: 23.38080276 | M81: 0.0007750096852 | N81: 1.14566013 | O81: 24.52646289 | P81: 0 | Q81: 0 | R81: 0 | S81: 147.9558209 | T81: 1478.252662 | U81: 1354.823304 | AA81: 147.9558209 | AB81: =+IF(AA81=0,0,AA81-IF(AND(TIPO_CUOTA=2,OR(MONTH(F81)=8,MONTH(F81)=12)),2*Datos!$C$31,Datos!$C$31)) -> 147.9558209
B82: PP | C82: 51 | D82: 51 | E82: 1 | F82: 2026-05-17 | G82: 30 | H82: =IF(OR(B82="PG",B82=""),0, E82*(1/(1+TED)^SUMIF(B$32:B82,"PP",G$32:G82))) -> 0.4392051516 | I82: 1354.823304 | J82: 126.207629 | K82: 0.01530241947 | L82: 20.73207451 | M82: 0.00075 | N82: 1.016117478 | O82: 21.74819199 | P82: 0 | Q82: 0 | R82: 0 | S82: 147.9558209 | T82: 1354.823304 | U82: 1228.615675 | AA82: 147.9558209 | AB82: =+IF(AA82=0,0,AA82-IF(AND(TIPO_CUOTA=2,OR(MONTH(F82)=8,MONTH(F82)=12)),2*Datos!$C$31,Datos!$C$31)) -> 147.9558209
B83: PP | C83: 52 | D83: 52 | E83: 1 | F83: 2026-06-17 | G83: 31 | H83: =IF(OR(B83="PG",B83=""),0, E83*(1/(1+TED)^SUMIF(B$32:B83,"PP",G$32:G83))) -> 0.4320368332 | I83: 1228.615675 | J83: 127.5712158 | K83: 0.01581651321 | L83: 19.43241606 | M83: 0.0007750096852 | N83: 0.9521890477 | O83: 20.3846051 | P83: 0 | Q83: 0 | R83: 0 | S83: 147.9558209 | T83: 1228.615675 | U83: 1101.044459 | AA83: 147.9558209 | AB83: =+IF(AA83=0,0,AA83-IF(AND(TIPO_CUOTA=2,OR(MONTH(F83)=8,MONTH(F83)=12)),2*Datos!$C$31,Datos!$C$31)) -> 147.9558209
B84: PP | C84: 53 | D84: 53 | E84: 1 | F84: 2026-07-17 | G84: 30 | H84: =IF(OR(B84="PG",B84=""),0, E84*(1/(1+TED)^SUMIF(B$32:B84,"PP",G$32:G84))) -> 0.4252111652 | I84: 1101.044459 | J84: 130.2813934 | K84: 0.01530241947 | L84: 16.84864417 | M84: 0.00075 | N84: 0.8257833446 | O84: 17.67442752 | P84: 0 | Q84: 0 | R84: 0 | S84: 147.9558209 | T84: 1101.044459 | U84: 970.763066 | AA84: 147.9558209 | AB84: =+IF(AA84=0,0,AA84-IF(AND(TIPO_CUOTA=2,OR(MONTH(F84)=8,MONTH(F84)=12)),2*Datos!$C$31,Datos!$C$31)) -> 147.9558209
B85: PP | C85: 54 | D85: 54 | E85: 1 | F85: 2026-08-17 | G85: 31 | H85: =IF(OR(B85="PG",B85=""),0, E85*(1/(1+TED)^SUMIF(B$32:B85,"PP",G$32:G85))) -> 0.4182712442 | I85: 970.763066 | J85: 131.8493833 | K85: 0.01581651321 | L85: 15.35408686 | M85: 0.0007750096852 | N85: 0.7523507782 | O85: 16.10643763 | P85: 0 | Q85: 0 | R85: 0 | S85: 147.9558209 | T85: 970.763066 | U85: 838.9136827 | AA85: 147.9558209 | AB85: =+IF(AA85=0,0,AA85-IF(AND(TIPO_CUOTA=2,OR(MONTH(F85)=8,MONTH(F85)=12)),2*Datos!$C$31,Datos!$C$31)) -> 147.9558209
B86: PP | C86: 55 | D86: 55 | E86: 1 | F86: 2026-09-17 | G86: 31 | H86: =IF(OR(B86="PG",B86=""),0, E86*(1/(1+TED)^SUMIF(B$32:B86,"PP",G$32:G86))) -> 0.4114445904 | I86: 838.9136827 | J86: 134.0369654 | K86: 0.01581651321 | L86: 13.26868934 | M86: 0.0007750096852 | N86: 0.6501662291 | O86: 13.91885557 | P86: 0 | Q86: 0 | R86: 0 | S86: 147.9558209 | T86: 838.9136827 | U86: 704.8767173 | AA86: 147.9558209 | AB86: =+IF(AA86=0,0,AA86-IF(AND(TIPO_CUOTA=2,OR(MONTH(F86)=8,MONTH(F86)=12)),2*Datos!$C$31,Datos!$C$31)) -> 147.9558209
B87: PP | C87: 56 | D87: 56 | E87: 1 | F87: 2026-10-17 | G87: 30 | H87: =IF(OR(B87="PG",B87=""),0, E87*(1/(1+TED)^SUMIF(B$32:B87,"PP",G$32:G87))) -> 0.4049442554 | I87: 704.8767173 | J87: 136.6408442 | K87: 0.01530241947 | L87: 10.7863192 | M87: 0.00075 | N87: 0.528657538 | O87: 11.31497674 | P87: 0 | Q87: 0 | R87: 0 | S87: 147.9558209 | T87: 704.8767173 | U87: 568.2358731 | AA87: 147.9558209 | AB87: =+IF(AA87=0,0,AA87-IF(AND(TIPO_CUOTA=2,OR(MONTH(F87)=8,MONTH(F87)=12)),2*Datos!$C$31,Datos!$C$31)) -> 147.9558209
B88: PP | C88: 57 | D88: 57 | E88: 1 | F88: 2026-11-17 | G88: 31 | H88: =IF(OR(B88="PG",B88=""),0, E88*(1/(1+TED)^SUMIF(B$32:B88,"PP",G$32:G88))) -> 0.398335113 | I88: 568.2358731 | J88: 138.5279224 | K88: 0.01581651321 | L88: 8.987510192 | M88: 0.0007750096852 | N88: 0.4403883051 | O88: 9.427898498 | P88: 0 | Q88: 0 | R88: 0 | S88: 147.9558209 | T88: 568.2358731 | U88: 429.7079507 | AA88: 147.9558209 | AB88: =+IF(AA88=0,0,AA88-IF(AND(TIPO_CUOTA=2,OR(MONTH(F88)=8,MONTH(F88)=12)),2*Datos!$C$31,Datos!$C$31)) -> 147.9558209
B89: PP | C89: 58 | D89: 58 | E89: 1 | F89: 2026-12-17 | G89: 30 | H89: =IF(OR(B89="PG",B89=""),0, E89*(1/(1+TED)^SUMIF(B$32:B89,"PP",G$32:G89))) -> 0.3920418921 | I89: 429.7079507 | J89: 141.0579687 | K89: 0.01530241947 | L89: 6.575571311 | M89: 0.00075 | N89: 0.322280963 | O89: 6.897852274 | P89: 0 | Q89: 0 | R89: 0 | S89: 147.9558209 | T89: 429.7079507 | U89: 288.649982 | AA89: 147.9558209 | AB89: =+IF(AA89=0,0,AA89-IF(AND(TIPO_CUOTA=2,OR(MONTH(F89)=8,MONTH(F89)=12)),2*Datos!$C$31,Datos!$C$31)) -> 147.9558209
B90: PP | C90: 59 | D90: 59 | E90: 1 | F90: 2027-01-17 | G90: 31 | H90: =IF(OR(B90="PG",B90=""),0, E90*(1/(1+TED)^SUMIF(B$32:B90,"PP",G$32:G90))) -> 0.3856433306 | I90: 288.649982 | J90: 143.1666782 | K90: 0.01581651321 | L90: 4.565436253 | M90: 0.0007750096852 | N90: 0.2237065317 | O90: 4.789142785 | P90: 0 | Q90: 0 | R90: 0 | S90: 147.9558209 | T90: 288.649982 | U90: 145.4833039 | AA90: 147.9558209 | AB90: =+IF(AA90=0,0,AA90-IF(AND(TIPO_CUOTA=2,OR(MONTH(F90)=8,MONTH(F90)=12)),2*Datos!$C$31,Datos!$C$31)) -> 147.9558209
B91: PP | C91: 60 | D91: 60 | E91: 1 | F91: 2027-02-17 | G91: 31 | H91: =IF(OR(B91="PG",B91=""),0, E91*(1/(1+TED)^SUMIF(B$32:B91,"PP",G$32:G91))) -> 0.3793492009 | I91: 145.4833039 | J91: 145.5420314 | K91: 0.01581651321 | L91: 2.301038597 | M91: 0.0007750096852 | N91: 0.1127509695 | O91: 2.413789566 | P91: 0 | Q91: 0 | R91: 0 | S91: 147.9558209 | T91: 145.4833039 | U91: -0.05872751878 | AA91: 147.9558209 | AB91: =+IF(AA91=0,0,AA91-IF(AND(TIPO_CUOTA=2,OR(MONTH(F91)=8,MONTH(F91)=12)),2*Datos!$C$31,Datos!$C$31)) -> 147.9558209
C92: 61 | D92: 0 | E92: 0 | F92: 2027-03-17 | G92: 28 | H92: =IF(OR(B92="PG",B92=""),0, E92*(1/(1+TED)^SUMIF(B$32:B92,"PP",G$32:G92))) -> 0 | I92: -0.05872751878 | J92: 0 | K92: 0 | L92: 0 | M92: 0 | N92: 0 | O92: 0 | P92: 0 | Q92: 0 | R92: 0 | S92: 0 | T92: -0.05872751878 | U92: -0.05872751878 | AA92: 0 | AB92: =+IF(AA92=0,0,AA92-IF(AND(TIPO_CUOTA=2,OR(MONTH(F92)=8,MONTH(F92)=12)),2*Datos!$C$31,Datos!$C$31)) -> 0
C93: 62 | D93: 0 | E93: 0 | F93: 2027-04-17 | G93: 31 | H93: =IF(OR(B93="PG",B93=""),0, E93*(1/(1+TED)^SUMIF(B$32:B93,"PP",G$32:G93))) -> 0 | I93: -0.05872751878 | J93: 0 | K93: 0 | L93: 0 | M93: 0 | N93: 0 | O93: 0 | P93: 0 | Q93: 0 | R93: 0 | S93: 0 | T93: -0.05872751878 | U93: -0.05872751878 | AA93: 0 | AB93: =+IF(AA93=0,0,AA93-IF(AND(TIPO_CUOTA=2,OR(MONTH(F93)=8,MONTH(F93)=12)),2*Datos!$C$31,Datos!$C$31)) -> 0
C94: 63 | D94: 0 | E94: 0 | F94: 2027-05-17 | G94: 30 | H94: =IF(OR(B94="PG",B94=""),0, E94*(1/(1+TED)^SUMIF(B$32:B94,"PP",G$32:G94))) -> 0 | I94: -0.05872751878 | J94: 0 | K94: 0 | L94: 0 | M94: 0 | N94: 0 | O94: 0 | P94: 0 | Q94: 0 | R94: 0 | S94: 0 | T94: -0.05872751878 | U94: -0.05872751878 | AA94: 0 | AB94: =+IF(AA94=0,0,AA94-IF(AND(TIPO_CUOTA=2,OR(MONTH(F94)=8,MONTH(F94)=12)),2*Datos!$C$31,Datos!$C$31)) -> 0
C95: 64 | D95: 0 | E95: 0 | F95: 2027-06-17 | G95: 31 | H95: =IF(OR(B95="PG",B95=""),0, E95*(1/(1+TED)^SUMIF(B$32:B95,"PP",G$32:G95))) -> 0 | I95: -0.05872751878 | J95: 0 | K95: 0 | L95: 0 | M95: 0 | N95: =I95*M95 -> 0 | O95: 0 | P95: 0 | Q95: 0 | R95: 0 | S95: 0 | T95: -0.05872751878 | U95: -0.05872751878 | AA95: 0 | AB95: =+IF(AA95=0,0,AA95-IF(AND(TIPO_CUOTA=2,OR(MONTH(F95)=8,MONTH(F95)=12)),2*Datos!$C$31,Datos!$C$31)) -> 0
B96: =IF(C96<=MESES_GRACIA,"PG",IF(C96-MESES_GRACIA<=PLAZO,"PP","")) ->  | C96: 65 | D96: =IF(B96="PG",0,IF(B96="PP",D95+1,0)) -> 0 | E96: =IF(TIPO_CUOTA=2,IF(IF(DAY(F96)<=15,IF(OR(MONTH(F96)=8,MONTH(F96)=1),1,0),IF(OR(MONTH(F96)=7,MONTH(F96)=12),1,0)),2,IF(OR(B96="",B96="PG"),0,1)),IF(OR(B96="",B96="PG"),0,1)) -> 0 | F96: 2027-07-17 | G96: =IF(F95=0,F96-FEC_DES,F96-F95) -> 30 | H96: =IF(OR(B96="PG",B96=""),0, E96*(1/(1+TED)^SUMIF(B$32:B96,"PP",G$32:G96))) -> 0 | I96: -0.05872751878 | J96: 0 | K96: =IF(B96="",0,(1+TED_0)^G96-1) -> 0 | L96: 0 | M96: =IF(B96="",0,(1+TED_1)^G96-1) -> 0 | N96: 0 | O96: =L96+N96 -> 0 | P96: 0 | Q96: =IF(B96="PP",COMISION,0) -> 0 | R96: 0 | S96: =IF(OR(B96="PG",B96=""),0,(E96*CUOTA)+Q96) -> 0 | T96: -0.05872751878 | U96: -0.05872751878 | AA96: 0 | AB96: =+IF(AA96=0,0,AA96-IF(AND(TIPO_CUOTA=2,OR(MONTH(F96)=8,MONTH(F96)=12)),2*Datos!$C$31,Datos!$C$31)) -> 0
C97: 66 | D97: 0 | E97: 0 | F97: 2027-08-17 | G97: 31 | H97: =IF(OR(B97="PG",B97=""),0, E97*(1/(1+TED)^SUMIF(B$32:B97,"PP",G$32:G97))) -> 0 | I97: -0.05872751878 | J97: =S97-O97-Q97 -> 0 | K97: 0 | L97: 0 | M97: 0 | N97: 0 | O97: 0 | P97: 0 | Q97: 0 | R97: 0 | S97: 0 | T97: =I97 -> -0.05872751878 | U97: -0.05872751878 | AA97: =+S97 -> 0 | AB97: =+IF(AA97=0,0,AA97-IF(AND(TIPO_CUOTA=2,OR(MONTH(F97)=8,MONTH(F97)=12)),2*Datos!$C$31,Datos!$C$31)) -> 0
C98: 67 | D98: 0 | E98: 0 | F98: =EDATE(F97,1) -> 2027-09-17 | G98: 31 | H98: =IF(OR(B98="PG",B98=""),0, E98*(1/(1+TED)^SUMIF(B$32:B98,"PP",G$32:G98))) -> 0 | I98: -0.05872751878 | J98: 0 | K98: 0 | L98: 0 | M98: 0 | N98: 0 | O98: 0 | P98: 0 | Q98: 0 | R98: 0 | S98: 0 | T98: -0.05872751878 | U98: -0.05872751878 | AA98: 0 | AB98: =+IF(AA98=0,0,AA98-IF(AND(TIPO_CUOTA=2,OR(MONTH(F98)=8,MONTH(F98)=12)),2*Datos!$C$31,Datos!$C$31)) -> 0
C99: 68 | D99: 0 | E99: 0 | F99: 2027-10-17 | G99: 30 | H99: =IF(OR(B99="PG",B99=""),0, E99*(1/(1+TED)^SUMIF(B$32:B99,"PP",G$32:G99))) -> 0 | I99: -0.05872751878 | J99: 0 | K99: 0 | L99: 0 | M99: 0 | N99: 0 | O99: 0 | P99: 0 | Q99: 0 | R99: 0 | S99: 0 | T99: -0.05872751878 | U99: -0.05872751878 | AA99: 0 | AB99: =+IF(AA99=0,0,AA99-IF(AND(TIPO_CUOTA=2,OR(MONTH(F99)=8,MONTH(F99)=12)),2*Datos!$C$31,Datos!$C$31)) -> 0
C100: 69 | D100: 0 | E100: 0 | F100: 2027-11-17 | G100: 31 | H100: =IF(OR(B100="PG",B100=""),0, E100*(1/(1+TED)^SUMIF(B$32:B100,"PP",G$32:G100))) -> 0 | I100: -0.05872751878 | J100: 0 | K100: 0 | L100: 0 | M100: 0 | N100: 0 | O100: 0 | P100: 0 | Q100: 0 | R100: 0 | S100: 0 | T100: -0.05872751878 | U100: -0.05872751878 | AA100: 0 | AB100: =+IF(AA100=0,0,AA100-IF(AND(TIPO_CUOTA=2,OR(MONTH(F100)=8,MONTH(F100)=12)),2*Datos!$C$31,Datos!$C$31)) -> 0
C101: 70 | D101: 0 | E101: 0 | F101: 2027-12-17 | G101: 30 | H101: =IF(OR(B101="PG",B101=""),0, E101*(1/(1+TED)^SUMIF(B$32:B101,"PP",G$32:G101))) -> 0 | I101: -0.05872751878 | J101: 0 | K101: 0 | L101: 0 | M101: 0 | N101: 0 | O101: 0 | P101: 0 | Q101: 0 | R101: 0 | S101: 0 | T101: -0.05872751878 | U101: -0.05872751878 | AA101: 0 | AB101: =+IF(AA101=0,0,AA101-IF(AND(TIPO_CUOTA=2,OR(MONTH(F101)=8,MONTH(F101)=12)),2*Datos!$C$31,Datos!$C$31)) -> 0
C102: 71 | D102: 0 | E102: 0 | F102: 2028-01-17 | G102: 31 | H102: =IF(OR(B102="PG",B102=""),0, E102*(1/(1+TED)^SUMIF(B$32:B102,"PP",G$32:G102))) -> 0 | I102: -0.05872751878 | J102: 0 | K102: 0 | L102: 0 | M102: 0 | N102: 0 | O102: 0 | P102: 0 | Q102: 0 | R102: 0 | S102: 0 | T102: -0.05872751878 | U102: -0.05872751878 | AA102: 0 | AB102: =+IF(AA102=0,0,AA102-IF(AND(TIPO_CUOTA=2,OR(MONTH(F102)=8,MONTH(F102)=12)),2*Datos!$C$31,Datos!$C$31)) -> 0
C103: 72 | D103: 0 | E103: 0 | F103: 2028-02-17 | G103: 31 | H103: =IF(OR(B103="PG",B103=""),0, E103*(1/(1+TED)^SUMIF(B$32:B103,"PP",G$32:G103))) -> 0 | I103: -0.05872751878 | J103: 0 | K103: 0 | L103: 0 | M103: 0 | N103: 0 | O103: 0 | P103: 0 | Q103: 0 | R103: 0 | S103: 0 | T103: -0.05872751878 | U103: -0.05872751878 | AA103: 0 | AB103: =+IF(AA103=0,0,AA103-IF(AND(TIPO_CUOTA=2,OR(MONTH(F103)=8,MONTH(F103)=12)),2*Datos!$C$31,Datos!$C$31)) -> 0
C104: 73 | D104: 0 | E104: 0 | F104: 2028-03-17 | G104: 29 | H104: =IF(OR(B104="PG",B104=""),0, E104*(1/(1+TED)^SUMIF(B$32:B104,"PP",G$32:G104))) -> 0 | I104: -0.05872751878 | J104: 0 | K104: 0 | L104: 0 | M104: 0 | N104: 0 | O104: 0 | P104: 0 | Q104: 0 | R104: 0 | S104: 0 | T104: -0.05872751878 | U104: -0.05872751878 | AA104: 0 | AB104: =+IF(AA104=0,0,AA104-IF(AND(TIPO_CUOTA=2,OR(MONTH(F104)=8,MONTH(F104)=12)),2*Datos!$C$31,Datos!$C$31)) -> 0
C105: 74 | D105: 0 | E105: 0 | F105: 2028-04-17 | G105: 31 | H105: =IF(OR(B105="PG",B105=""),0, E105*(1/(1+TED)^SUMIF(B$32:B105,"PP",G$32:G105))) -> 0 | I105: -0.05872751878 | J105: 0 | K105: 0 | L105: 0 | M105: 0 | N105: 0 | O105: 0 | P105: 0 | Q105: 0 | R105: 0 | S105: 0 | T105: -0.05872751878 | U105: -0.05872751878 | AA105: 0 | AB105: =+IF(AA105=0,0,AA105-IF(AND(TIPO_CUOTA=2,OR(MONTH(F105)=8,MONTH(F105)=12)),2*Datos!$C$31,Datos!$C$31)) -> 0
C106: 75 | D106: 0 | E106: 0 | F106: 2028-05-17 | G106: 30 | H106: =IF(OR(B106="PG",B106=""),0, E106*(1/(1+TED)^SUMIF(B$32:B106,"PP",G$32:G106))) -> 0 | I106: -0.05872751878 | J106: 0 | K106: 0 | L106: 0 | M106: 0 | N106: 0 | O106: 0 | P106: 0 | Q106: 0 | R106: 0 | S106: 0 | T106: -0.05872751878 | U106: -0.05872751878 | AA106: 0 | AB106: =+IF(AA106=0,0,AA106-IF(AND(TIPO_CUOTA=2,OR(MONTH(F106)=8,MONTH(F106)=12)),2*Datos!$C$31,Datos!$C$31)) -> 0
C107: 76 | D107: 0 | E107: 0 | F107: 2028-06-17 | G107: 31 | H107: =IF(OR(B107="PG",B107=""),0, E107*(1/(1+TED)^SUMIF(B$32:B107,"PP",G$32:G107))) -> 0 | I107: -0.05872751878 | J107: 0 | K107: 0 | L107: 0 | M107: 0 | N107: 0 | O107: 0 | P107: 0 | Q107: 0 | R107: 0 | S107: 0 | T107: -0.05872751878 | U107: -0.05872751878 | AA107: 0 | AB107: =+IF(AA107=0,0,AA107-IF(AND(TIPO_CUOTA=2,OR(MONTH(F107)=8,MONTH(F107)=12)),2*Datos!$C$31,Datos!$C$31)) -> 0
C108: 77 | D108: 0 | E108: 0 | F108: 2028-07-17 | G108: 30 | H108: =IF(OR(B108="PG",B108=""),0, E108*(1/(1+TED)^SUMIF(B$32:B108,"PP",G$32:G108))) -> 0 | I108: =U107 -> -0.05872751878 | J108: 0 | K108: 0 | L108: =I108*K108 -> 0 | M108: 0 | N108: 0 | O108: 0 | P108: 0 | Q108: 0 | R108: 0 | S108: 0 | T108: -0.05872751878 | U108: =I108-J108 -> -0.05872751878 | AA108: 0 | AB108: =+IF(AA108=0,0,AA108-IF(AND(TIPO_CUOTA=2,OR(MONTH(F108)=8,MONTH(F108)=12)),2*Datos!$C$31,Datos!$C$31)) -> 0
C109: 78 | D109: 0 | E109: 0 | F109: 2028-08-17 | G109: 31 | H109: =IF(OR(B109="PG",B109=""),0, E109*(1/(1+TED)^SUMIF(B$32:B109,"PP",G$32:G109))) -> 0 | I109: -0.05872751878 | J109: 0 | K109: 0 | L109: 0 | M109: 0 | N109: 0 | O109: 0 | P109: 0 | Q109: 0 | R109: 0 | S109: 0 | T109: -0.05872751878 | U109: -0.05872751878 | AA109: 0 | AB109: =+IF(AA109=0,0,AA109-IF(AND(TIPO_CUOTA=2,OR(MONTH(F109)=8,MONTH(F109)=12)),2*Datos!$C$31,Datos!$C$31)) -> 0
C110: 79 | D110: 0 | E110: 0 | F110: 2028-09-17 | G110: 31 | H110: =IF(OR(B110="PG",B110=""),0, E110*(1/(1+TED)^SUMIF(B$32:B110,"PP",G$32:G110))) -> 0 | I110: -0.05872751878 | J110: 0 | K110: 0 | L110: 0 | M110: 0 | N110: 0 | O110: 0 | P110: 0 | Q110: 0 | R110: 0 | S110: 0 | T110: -0.05872751878 | U110: -0.05872751878 | AA110: 0 | AB110: =+IF(AA110=0,0,AA110-IF(AND(TIPO_CUOTA=2,OR(MONTH(F110)=8,MONTH(F110)=12)),2*Datos!$C$31,Datos!$C$31)) -> 0
C111: 80 | D111: 0 | E111: 0 | F111: 2028-10-17 | G111: 30 | H111: =IF(OR(B111="PG",B111=""),0, E111*(1/(1+TED)^SUMIF(B$32:B111,"PP",G$32:G111))) -> 0 | I111: -0.05872751878 | J111: 0 | K111: 0 | L111: 0 | M111: 0 | N111: 0 | O111: 0 | P111: 0 | Q111: 0 | R111: 0 | S111: 0 | T111: -0.05872751878 | U111: -0.05872751878 | AA111: 0 | AB111: =+IF(AA111=0,0,AA111-IF(AND(TIPO_CUOTA=2,OR(MONTH(F111)=8,MONTH(F111)=12)),2*Datos!$C$31,Datos!$C$31)) -> 0
C112: 81 | D112: 0 | E112: 0 | F112: 2028-11-17 | G112: 31 | H112: =IF(OR(B112="PG",B112=""),0, E112*(1/(1+TED)^SUMIF(B$32:B112,"PP",G$32:G112))) -> 0 | I112: =U111 -> -0.05872751878 | J112: 0 | K112: 0 | L112: =I112*K112 -> 0 | M112: 0 | N112: =I112*M112 -> 0 | O112: =L112+N112 -> 0 | P112: 0 | Q112: 0 | R112: 0 | S112: 0 | T112: -0.05872751878 | U112: =I112-J112 -> -0.05872751878 | AA112: 0 | AB112: =+IF(AA112=0,0,AA112-IF(AND(TIPO_CUOTA=2,OR(MONTH(F112)=8,MONTH(F112)=12)),2*Datos!$C$31,Datos!$C$31)) -> 0
C113: 82 | D113: 0 | E113: 0 | F113: 2028-12-17 | G113: 30 | H113: =IF(OR(B113="PG",B113=""),0, E113*(1/(1+TED)^SUMIF(B$32:B113,"PP",G$32:G113))) -> 0 | I113: -0.05872751878 | J113: 0 | K113: 0 | L113: 0 | M113: 0 | N113: 0 | O113: 0 | P113: 0 | Q113: 0 | R113: 0 | S113: 0 | T113: -0.05872751878 | U113: -0.05872751878 | AA113: 0 | AB113: =+IF(AA113=0,0,AA113-IF(AND(TIPO_CUOTA=2,OR(MONTH(F113)=8,MONTH(F113)=12)),2*Datos!$C$31,Datos!$C$31)) -> 0
C114: 83 | D114: 0 | E114: 0 | F114: 2029-01-17 | G114: 31 | H114: =IF(OR(B114="PG",B114=""),0, E114*(1/(1+TED)^SUMIF(B$32:B114,"PP",G$32:G114))) -> 0 | I114: -0.05872751878 | J114: 0 | K114: 0 | L114: 0 | M114: 0 | N114: 0 | O114: 0 | P114: 0 | Q114: 0 | R114: 0 | S114: 0 | T114: -0.05872751878 | U114: -0.05872751878 | AA114: 0 | AB114: =+IF(AA114=0,0,AA114-IF(AND(TIPO_CUOTA=2,OR(MONTH(F114)=8,MONTH(F114)=12)),2*Datos!$C$31,Datos!$C$31)) -> 0
C115: 84 | D115: 0 | E115: 0 | F115: 2029-02-17 | G115: 31 | H115: =IF(OR(B115="PG",B115=""),0, E115*(1/(1+TED)^SUMIF(B$32:B115,"PP",G$32:G115))) -> 0 | I115: -0.05872751878 | J115: 0 | K115: 0 | L115: 0 | M115: 0 | N115: 0 | O115: 0 | P115: 0 | Q115: 0 | R115: 0 | S115: 0 | T115: -0.05872751878 | U115: -0.05872751878 | AA115: 0 | AB115: =+IF(AA115=0,0,AA115-IF(AND(TIPO_CUOTA=2,OR(MONTH(F115)=8,MONTH(F115)=12)),2*Datos!$C$31,Datos!$C$31)) -> 0
C116: 85 | D116: 0 | E116: 0 | F116: 2029-03-17 | G116: 28 | H116: =IF(OR(B116="PG",B116=""),0, E116*(1/(1+TED)^SUMIF(B$32:B116,"PP",G$32:G116))) -> 0 | I116: -0.05872751878 | J116: 0 | K116: 0 | L116: 0 | M116: 0 | N116: 0 | O116: 0 | P116: 0 | Q116: 0 | R116: 0 | S116: 0 | T116: -0.05872751878 | U116: -0.05872751878 | AA116: 0 | AB116: =+IF(AA116=0,0,AA116-IF(AND(TIPO_CUOTA=2,OR(MONTH(F116)=8,MONTH(F116)=12)),2*Datos!$C$31,Datos!$C$31)) -> 0
C117: 86 | D117: 0 | E117: 0 | F117: 2029-04-17 | G117: 31 | H117: =IF(OR(B117="PG",B117=""),0, E117*(1/(1+TED)^SUMIF(B$32:B117,"PP",G$32:G117))) -> 0 | I117: -0.05872751878 | J117: 0 | K117: 0 | L117: 0 | M117: 0 | N117: 0 | O117: 0 | P117: 0 | Q117: 0 | R117: 0 | S117: 0 | T117: -0.05872751878 | U117: -0.05872751878 | AA117: 0 | AB117: =+IF(AA117=0,0,AA117-IF(AND(TIPO_CUOTA=2,OR(MONTH(F117)=8,MONTH(F117)=12)),2*Datos!$C$31,Datos!$C$31)) -> 0
C118: 87 | D118: 0 | E118: 0 | F118: 2029-05-17 | G118: 30 | H118: =IF(OR(B118="PG",B118=""),0, E118*(1/(1+TED)^SUMIF(B$32:B118,"PP",G$32:G118))) -> 0 | I118: -0.05872751878 | J118: 0 | K118: 0 | L118: 0 | M118: 0 | N118: 0 | O118: 0 | P118: 0 | Q118: 0 | R118: 0 | S118: 0 | T118: -0.05872751878 | U118: -0.05872751878 | AA118: 0 | AB118: =+IF(AA118=0,0,AA118-IF(AND(TIPO_CUOTA=2,OR(MONTH(F118)=8,MONTH(F118)=12)),2*Datos!$C$31,Datos!$C$31)) -> 0
C119: 88 | D119: 0 | E119: 0 | F119: 2029-06-17 | G119: 31 | H119: =IF(OR(B119="PG",B119=""),0, E119*(1/(1+TED)^SUMIF(B$32:B119,"PP",G$32:G119))) -> 0 | I119: -0.05872751878 | J119: 0 | K119: 0 | L119: 0 | M119: 0 | N119: 0 | O119: 0 | P119: 0 | Q119: 0 | R119: 0 | S119: 0 | T119: -0.05872751878 | U119: -0.05872751878 | AA119: 0 | AB119: =+IF(AA119=0,0,AA119-IF(AND(TIPO_CUOTA=2,OR(MONTH(F119)=8,MONTH(F119)=12)),2*Datos!$C$31,Datos!$C$31)) -> 0
C120: 89 | D120: 0 | E120: 0 | F120: 2029-07-17 | G120: 30 | H120: =IF(OR(B120="PG",B120=""),0, E120*(1/(1+TED)^SUMIF(B$32:B120,"PP",G$32:G120))) -> 0 | I120: -0.05872751878 | J120: 0 | K120: 0 | L120: 0 | M120: 0 | N120: 0 | O120: 0 | P120: 0 | Q120: 0 | R120: 0 | S120: 0 | T120: -0.05872751878 | U120: -0.05872751878 | AA120: 0 | AB120: =+IF(AA120=0,0,AA120-IF(AND(TIPO_CUOTA=2,OR(MONTH(F120)=8,MONTH(F120)=12)),2*Datos!$C$31,Datos!$C$31)) -> 0
C121: 90 | D121: 0 | E121: 0 | F121: 2029-08-17 | G121: 31 | H121: =IF(OR(B121="PG",B121=""),0, E121*(1/(1+TED)^SUMIF(B$32:B121,"PP",G$32:G121))) -> 0 | I121: -0.05872751878 | J121: 0 | K121: 0 | L121: 0 | M121: 0 | N121: 0 | O121: 0 | P121: 0 | Q121: 0 | R121: 0 | S121: 0 | T121: -0.05872751878 | U121: -0.05872751878 | AA121: 0 | AB121: =+IF(AA121=0,0,AA121-IF(AND(TIPO_CUOTA=2,OR(MONTH(F121)=8,MONTH(F121)=12)),2*Datos!$C$31,Datos!$C$31)) -> 0
C122: 91 | D122: 0 | E122: 0 | F122: 2029-09-17 | G122: 31 | H122: =IF(OR(B122="PG",B122=""),0, E122*(1/(1+TED)^SUMIF(B$32:B122,"PP",G$32:G122))) -> 0 | I122: -0.05872751878 | J122: 0 | K122: 0 | L122: 0 | M122: 0 | N122: 0 | O122: 0 | P122: 0 | Q122: 0 | R122: 0 | S122: 0 | T122: -0.05872751878 | U122: -0.05872751878 | AA122: 0 | AB122: =+IF(AA122=0,0,AA122-IF(AND(TIPO_CUOTA=2,OR(MONTH(F122)=8,MONTH(F122)=12)),2*Datos!$C$31,Datos!$C$31)) -> 0
C123: 92 | D123: 0 | E123: 0 | F123: 2029-10-17 | G123: 30 | H123: =IF(OR(B123="PG",B123=""),0, E123*(1/(1+TED)^SUMIF(B$32:B123,"PP",G$32:G123))) -> 0 | I123: -0.05872751878 | J123: 0 | K123: 0 | L123: 0 | M123: 0 | N123: 0 | O123: 0 | P123: 0 | Q123: 0 | R123: 0 | S123: 0 | T123: -0.05872751878 | U123: -0.05872751878 | AA123: 0 | AB123: =+IF(AA123=0,0,AA123-IF(AND(TIPO_CUOTA=2,OR(MONTH(F123)=8,MONTH(F123)=12)),2*Datos!$C$31,Datos!$C$31)) -> 0
C124: 93 | D124: 0 | E124: 0 | F124: 2029-11-17 | G124: 31 | H124: =IF(OR(B124="PG",B124=""),0, E124*(1/(1+TED)^SUMIF(B$32:B124,"PP",G$32:G124))) -> 0 | I124: -0.05872751878 | J124: 0 | K124: 0 | L124: 0 | M124: 0 | N124: 0 | O124: 0 | P124: 0 | Q124: 0 | R124: 0 | S124: 0 | T124: -0.05872751878 | U124: -0.05872751878 | AA124: 0 | AB124: =+IF(AA124=0,0,AA124-IF(AND(TIPO_CUOTA=2,OR(MONTH(F124)=8,MONTH(F124)=12)),2*Datos!$C$31,Datos!$C$31)) -> 0
C125: 94 | D125: 0 | E125: 0 | F125: 2029-12-17 | G125: 30 | H125: =IF(OR(B125="PG",B125=""),0, E125*(1/(1+TED)^SUMIF(B$32:B125,"PP",G$32:G125))) -> 0 | I125: -0.05872751878 | J125: 0 | K125: 0 | L125: 0 | M125: 0 | N125: 0 | O125: 0 | P125: 0 | Q125: 0 | R125: 0 | S125: 0 | T125: -0.05872751878 | U125: -0.05872751878 | AA125: 0 | AB125: =+IF(AA125=0,0,AA125-IF(AND(TIPO_CUOTA=2,OR(MONTH(F125)=8,MONTH(F125)=12)),2*Datos!$C$31,Datos!$C$31)) -> 0
C126: 95 | D126: 0 | E126: 0 | F126: 2030-01-17 | G126: 31 | H126: =IF(OR(B126="PG",B126=""),0, E126*(1/(1+TED)^SUMIF(B$32:B126,"PP",G$32:G126))) -> 0 | I126: -0.05872751878 | J126: 0 | K126: 0 | L126: 0 | M126: 0 | N126: 0 | O126: 0 | P126: 0 | Q126: 0 | R126: 0 | S126: 0 | T126: -0.05872751878 | U126: -0.05872751878 | AA126: 0 | AB126: =+IF(AA126=0,0,AA126-IF(AND(TIPO_CUOTA=2,OR(MONTH(F126)=8,MONTH(F126)=12)),2*Datos!$C$31,Datos!$C$31)) -> 0
C127: 96 | D127: 0 | E127: 0 | F127: 2030-02-17 | G127: 31 | H127: =IF(OR(B127="PG",B127=""),0, E127*(1/(1+TED)^SUMIF(B$32:B127,"PP",G$32:G127))) -> 0 | I127: -0.05872751878 | J127: 0 | K127: 0 | L127: 0 | M127: 0 | N127: 0 | O127: 0 | P127: 0 | Q127: 0 | R127: 0 | S127: 0 | T127: -0.05872751878 | U127: -0.05872751878 | AA127: 0 | AB127: =+IF(AA127=0,0,AA127-IF(AND(TIPO_CUOTA=2,OR(MONTH(F127)=8,MONTH(F127)=12)),2*Datos!$C$31,Datos!$C$31)) -> 0
F129: TOTALES A PAGAR: | J129: =SUMIF(B32:B127,"PP",J32:J127) -> 5642.582733 | K129: =SUM(K32:K127) -> 0.9315149872 | L129: =SUMIF(B32:B127,"PP",L32:L127) -> 3083.646692 | M129: 0.04565025994 | N129: =SUMIF(B32:B127,"PP",N32:N127) -> 151.1198321 | O129: =SUM(O32:O127) -> 3234.766524 | P129: 0 | Q129: 0 | R129: 0 | S129: 8877.349257
L136: La solicitud de crédito está sujeta a evaluación, el desembolso y vencimiento del crédito dependerán de dicha evaluación. Los datos emitidos por este simulador son referenciales.
L139: Fecha de Desembolso: para efectos de esta simulación, la fecha de desembolso es el día de realizada la misma.
L141: El monto de la cuota incluye: (i) seguro de desgravamen individual; (ii) el envío físico de informe de pago (el cliente tiene la opción de elegir: (1) envío físico (con costo), (2) virtual (sin costo), (3) ambos o (4) ninguno). Para (i) n caso de contar con un seguro de vida personal, ud tiene la opción de endosarlo en cualquier momento y sin costo adicional, siempre y cuando este brinde coberturas, condiciones y plazos iguales o superiores al seguro ofrecido por Interbank. Para mayor información con respecto a condiciones, coberturas y procedimientos ingresar a www.interbank.pe. El seguro de desgravamen tiene una prima de 0.075% y es otorgado por Interseguro.
L144: La simulación no incluye el ITF.
